[Event "*** Titled Tuesday Blitz"]
[Site "Chess.com"]
[Date "2018.06.05"]
[Round "5"]
[White "tigra"]
[Black "Patzel09"]
[Result "1-0"]
[WhiteElo "2726"]
[BlackElo "2595"]
[TimeControl "180+2"]
[EndTime "14:12:28 PDT"]
[Termination "tigra won by resignation"]

1. e4 {[%clk 0:03:01.9]} 1... g6 {[%clk 0:03:00.4]} 2. d4 {[%clk 0:03:01.7]}
2... c6 {[%clk 0:03:01.9]} 3. c4 {[%clk 0:02:59.2]} 3... d5 {[%clk 0:03:00.6]}
4. exd5 {[%clk 0:02:59.4]} 4... cxd5 {[%clk 0:03:02.1]} 5. Nc3 {[%clk 0:03:01]}
5... Nf6 {[%clk 0:03:03.5]} 6. Nf3 {[%clk 0:03:00.8]} 6... Bg7 {[%clk
0:02:59.6]} 7. cxd5 {[%clk 0:02:57.6]} 7... Nxd5 {[%clk 0:03:01.5]} 8. Bb5+
{[%clk 0:02:50.1]} 8... Nc6 {[%clk 0:02:53.5]} 9. O-O {[%clk 0:02:43.7]} 9...
O-O {[%clk 0:02:50.6]} 10. h3 {[%clk 0:02:42.1]} 10... Nxc3 {[%clk 0:02:30.9]}
11. bxc3 {[%clk 0:02:42.4]} 11... Be6 {[%clk 0:02:31.6]} 12. Bg5 {[%clk
0:02:34.9]} 12... a6 {[%clk 0:02:24.1]} 13. Bxc6 {[%clk 0:02:33.9]} 13... bxc6
{[%clk 0:02:26]} 14. Re1 {[%clk 0:02:35.2]} 14... Re8 {[%clk 0:02:18.3]} 15. Qa4
{[%clk 0:02:30.2]} 15... Bd5 {[%clk 0:02:09.3]} 16. Re3 {[%clk 0:02:28.4]} 16...
Qb8 {[%clk 0:01:47.3]} 17. Rae1 {[%clk 0:02:23]} 17... f6 {[%clk 0:01:39.8]} 18.
Bh4 {[%clk 0:02:18.4]} 18... Ra7 {[%clk 0:01:18.8]} 19. Qa3 {[%clk 0:02:15.5]}
19... Kf7 {[%clk 0:01:17.5]} 20. Nd2 {[%clk 0:02:10.7]} 20... Bh6 {[%clk
0:00:57.9]} 21. c4 {[%clk 0:02:10.9]} 21... Be6 {[%clk 0:00:42.8]} 22. Rxe6
{[%clk 0:01:59.6]} 22... Bxd2 {[%clk 0:00:44.7]} 23. R1e2 {[%clk 0:01:59.9]}
23... Bf4 {[%clk 0:00:36.6]} 24. g3 {[%clk 0:01:55.9]} 24... Bd6 {[%clk
0:00:34.9]} 25. Qf3 {[%clk 0:01:52.1]} 25... Qb1+ {[%clk 0:00:13.6]} 26. Kg2
{[%clk 0:01:45.5]} 26... Qf5 {[%clk 0:00:15.5]} 27. Qxf5 {[%clk 0:01:41.9]}
27... gxf5 {[%clk 0:00:17.4]} 28. c5 {[%clk 0:01:38.5]} 28... Be5 {[%clk
0:00:16.8]} 29. Rxc6 {[%clk 0:01:30.6]} 29... Bxd4 {[%clk 0:00:18.2]} 30. f3
{[%clk 0:01:08]} 30... e5 {[%clk 0:00:17]} 31. Rxf6+ {[%clk 0:01:07]} 31... Kg7
{[%clk 0:00:18.3]} 32. Rxf5 {[%clk 0:01:08.5]} 32... Bxc5 {[%clk 0:00:17.6]} 33.
Rfxe5 {[%clk 0:01:03.2]} 33... Rxe5 {[%clk 0:00:19.2]} 34. Rxe5 {[%clk
0:01:04.5]} 34... Bd4 {[%clk 0:00:20.3]} 35. Re7+ {[%clk 0:01:03.9]} 35... Rxe7
{[%clk 0:00:20.8]} 36. Bxe7 {[%clk 0:01:05.8]} 36... Kg6 {[%clk 0:00:22.5]} 37.
f4 {[%clk 0:01:05.6]} 37... h5 {[%clk 0:00:24.4]} 38. Kf3 {[%clk 0:01:06]} 38...
Bc3 {[%clk 0:00:25.7]} 39. g4 {[%clk 0:01:06.6]} 39... hxg4+ {[%clk 0:00:26.8]}
40. hxg4 {[%clk 0:01:08.5]} 1-0

[Event "*** Titled Tuesday Blitz"]
[Site "Chess.com"]
[Date "2018.06.05"]
[Round "5"]
[White "Angulo07"]
[Black "fyall777"]
[Result "1-0"]
[WhiteElo "2420"]
[BlackElo "2313"]
[TimeControl "180+2"]
[EndTime "14:12:30 PDT"]
[Termination "Angulo07 won on time"]

1. d4 {[%clk 0:03:01.9]} 1... Nf6 {[%clk 0:03:00]} 2. Bg5 {[%clk 0:03:03.4]}
2... Ne4 {[%clk 0:03:00]} 3. Bf4 {[%clk 0:03:04.4]} 3... d5 {[%clk 0:03:00.8]}
4. f3 {[%clk 0:03:03.9]} 4... Nf6 {[%clk 0:03:01.4]} 5. e3 {[%clk 0:03:01.7]}
5... c5 {[%clk 0:03:01.7]} 6. c3 {[%clk 0:03:00.7]} 6... Nc6 {[%clk 0:03:02.4]}
7. Ne2 {[%clk 0:02:58.2]} 7... e6 {[%clk 0:02:57.4]} 8. Bg3 {[%clk 0:02:57.3]}
8... Bd6 {[%clk 0:02:54.8]} 9. Nd2 {[%clk 0:02:58.7]} 9... e5 {[%clk 0:02:54.5]}
10. dxe5 {[%clk 0:02:55.6]} 10... Bxe5 {[%clk 0:02:49.1]} 11. Nb3 {[%clk
0:02:53.9]} 11... Bxg3+ {[%clk 0:02:42.7]} 12. hxg3 {[%clk 0:02:52.2]} 12... Qe7
{[%clk 0:02:43.3]} 13. Kf2 {[%clk 0:02:48.2]} 13... Ne5 {[%clk 0:02:29.3]} 14.
Nf4 {[%clk 0:02:45.6]} 14... Neg4+ {[%clk 0:02:21.6]} 15. fxg4 {[%clk
0:02:40.8]} 15... Nxg4+ {[%clk 0:02:16.5]} 16. Ke1 {[%clk 0:02:39.3]} 16... Nxe3
{[%clk 0:02:10.1]} 17. Bb5+ {[%clk 0:02:40.5]} 17... Bd7 {[%clk 0:02:03.1]} 18.
Bxd7+ {[%clk 0:02:38.3]} 18... Kxd7 {[%clk 0:02:04.1]} 19. Qf3 {[%clk
0:02:35.7]} 19... g5 {[%clk 0:01:56.3]} 20. Nxd5 {[%clk 0:02:09]} 20... Nxd5+
{[%clk 0:01:56.3]} 21. Kf2 {[%clk 0:02:10.6]} 21... Qf6 {[%clk 0:01:43.2]} 22.
Rad1 {[%clk 0:01:58.8]} 22... Qxf3+ {[%clk 0:01:41.7]} 23. gxf3 {[%clk
0:01:59.9]} 23... Kc6 {[%clk 0:01:40.2]} 24. Rh6+ {[%clk 0:01:48.8]} 24... f6
{[%clk 0:01:36.4]} 25. c4 {[%clk 0:01:50.2]} 25... Nb4 {[%clk 0:01:21.5]} 26. a3
{[%clk 0:01:47.3]} 26... Na6 {[%clk 0:01:15.8]} 27. Rxf6+ {[%clk 0:01:45.5]}
27... Kc7 {[%clk 0:01:16.4]} 28. Rf7+ {[%clk 0:01:43.7]} 28... Kc8 {[%clk
0:01:17.1]} 29. Rd5 {[%clk 0:01:34.7]} 29... h6 {[%clk 0:00:20.1]} 30. Nxc5
{[%clk 0:01:30.5]} 30... Nxc5 {[%clk 0:00:21]} 31. Rxc5+ {[%clk 0:01:32.4]}
31... Kd8 {[%clk 0:00:22.1]} 32. Rxb7 {[%clk 0:01:29.7]} 32... Re8 {[%clk
0:00:19.5]} 33. Rh7 {[%clk 0:01:08.7]} 33... a5 {[%clk 0:00:09.2]} 34. Rcc7
{[%clk 0:01:05.5]} 1-0

[Event "*** Titled Tuesday Blitz"]
[Site "Chess.com"]
[Date "2018.06.05"]
[Round "5"]
[White "gemarin"]
[Black "tan275"]
[Result "0-1"]
[WhiteElo "1801"]
[BlackElo "2017"]
[TimeControl "180+2"]
[EndTime "14:12:40 PDT"]
[Termination "tan275 won on time"]

1. d4 {[%clk 0:03:00.7]} 1... Nf6 {[%clk 0:03:00.1]} 2. c4 {[%clk 0:03:00.9]}
2... e6 {[%clk 0:03:00.7]} 3. Nf3 {[%clk 0:02:59.3]} 3... d5 {[%clk 0:03:00.6]}
4. Nc3 {[%clk 0:02:57.7]} 4... Be7 {[%clk 0:02:59.4]} 5. Bg5 {[%clk 0:02:57.7]}
5... h6 {[%clk 0:02:58.1]} 6. Bh4 {[%clk 0:02:58]} 6... O-O {[%clk 0:02:59]} 7.
e3 {[%clk 0:02:58.7]} 7... b6 {[%clk 0:03:00.2]} 8. Rc1 {[%clk 0:02:57]} 8...
Bb7 {[%clk 0:03:00.3]} 9. Bxf6 {[%clk 0:02:57.7]} 9... Bxf6 {[%clk 0:03:00.4]}
10. cxd5 {[%clk 0:02:58.3]} 10... exd5 {[%clk 0:02:59.6]} 11. b4 {[%clk
0:02:58.7]} 11... Be7 {[%clk 0:02:56.7]} 12. Qb3 {[%clk 0:02:56.5]} 12... c6
{[%clk 0:02:54.9]} 13. Be2 {[%clk 0:02:51]} 13... Nd7 {[%clk 0:02:38.9]} 14. O-O
{[%clk 0:02:50.7]} 14... Nf6 {[%clk 0:02:38.9]} 15. Rfd1 {[%clk 0:02:51.3]}
15... Bd6 {[%clk 0:02:27.4]} 16. Ne5 {[%clk 0:02:38.6]} 16... Qe7 {[%clk
0:02:09.5]} 17. f4 {[%clk 0:02:38.1]} 17... c5 {[%clk 0:01:59.1]} 18. bxc5
{[%clk 0:02:28.9]} 18... bxc5 {[%clk 0:01:58.2]} 19. Nb5 {[%clk 0:02:29.6]}
19... c4 {[%clk 0:01:41.6]} 20. Qb1 {[%clk 0:02:21.6]} 20... Bb4 {[%clk
0:01:13.5]} 21. a3 {[%clk 0:02:01]} 21... Ba5 {[%clk 0:01:13]} 22. Bf3 {[%clk
0:01:56.4]} 22... Rab8 {[%clk 0:01:08.6]} 23. Nc3 {[%clk 0:01:46.6]} 23... Qxa3
{[%clk 0:01:02.9]} 24. Qc2 {[%clk 0:01:35.3]} 24... Qe7 {[%clk 0:00:43.2]} 25.
Ra1 {[%clk 0:01:28.3]} 25... Bb6 {[%clk 0:00:42.8]} 26. Rdb1 {[%clk 0:01:11.4]}
26... Rfc8 {[%clk 0:00:37.6]} 27. Nb5 {[%clk 0:01:10.2]} 27... a6 {[%clk
0:00:32.4]} 0-1

[Event "*** Titled Tuesday Blitz"]
[Site "Chess.com"]
[Date "2018.06.05"]
[Round "5"]
[White "jlucasvf"]
[Black "lupta_robin"]
[Result "1/2-1/2"]
[WhiteElo "2277"]
[BlackElo "2444"]
[TimeControl "180+2"]
[EndTime "14:12:47 PDT"]
[Termination "Game drawn by repetition"]

1. e4 {[%clk 0:03:01.9]} 1... c5 {[%clk 0:03:00.5]} 2. Nf3 {[%clk 0:03:02]} 2...
d6 {[%clk 0:03:01.5]} 3. d4 {[%clk 0:03:03]} 3... cxd4 {[%clk 0:03:02.8]} 4.
Nxd4 {[%clk 0:03:04.8]} 4... Nf6 {[%clk 0:03:03.7]} 5. Nc3 {[%clk 0:03:05]} 5...
g6 {[%clk 0:03:04.7]} 6. Be3 {[%clk 0:03:05.3]} 6... Bg7 {[%clk 0:03:06]} 7. f3
{[%clk 0:03:06.1]} 7... O-O {[%clk 0:03:06.8]} 8. Bc4 {[%clk 0:03:06.6]} 8...
Nc6 {[%clk 0:03:06.4]} 9. Qd2 {[%clk 0:03:04.4]} 9... Bd7 {[%clk 0:03:06.8]} 10.
O-O-O {[%clk 0:03:03.6]} 10... Rc8 {[%clk 0:03:07.7]} 11. Bb3 {[%clk 0:03:04.9]}
11... Nxd4 {[%clk 0:03:08.8]} 12. Bxd4 {[%clk 0:03:06.8]} 12... b5 {[%clk
0:03:09.8]} 13. Nd5 {[%clk 0:03:01.3]} 13... Nxd5 {[%clk 0:03:10.2]} 14. Bxg7
{[%clk 0:03:01]} 14... Kxg7 {[%clk 0:03:10.9]} 15. exd5 {[%clk 0:03:02.5]} 15...
a5 {[%clk 0:03:03.4]} 16. a3 {[%clk 0:03:02.9]} 16... Kg8 {[%clk 0:03:04.5]} 17.
h4 {[%clk 0:03:02.1]} 17... b4 {[%clk 0:03:05.7]} 18. axb4 {[%clk 0:02:57.7]}
18... axb4 {[%clk 0:03:06.5]} 19. Qxb4 {[%clk 0:02:59.6]} 19... Qc7 {[%clk
0:02:44.4]} 20. h5 {[%clk 0:02:53.9]} 20... Bf5 {[%clk 0:02:44.8]} 21. Qc3
{[%clk 0:02:29.6]} 21... Qb6 {[%clk 0:02:18.3]} 22. Bc4 {[%clk 0:02:26.8]} 22...
Rxc4 {[%clk 0:02:12.1]} 23. Qxc4 {[%clk 0:02:28.7]} 23... Rc8 {[%clk 0:02:12.9]}
24. Qe2 {[%clk 0:02:23.5]} 24... Rxc2+ {[%clk 0:01:48.8]} 25. Qxc2 {[%clk
0:02:25.4]} 25... Bxc2 {[%clk 0:01:49.7]} 26. Kxc2 {[%clk 0:02:26.1]} 26... Qc5+
{[%clk 0:01:37.4]} 27. Kb1 {[%clk 0:02:24.5]} 27... Qf2 {[%clk 0:01:27.7]} 28.
hxg6 {[%clk 0:02:19.7]} 28... hxg6 {[%clk 0:01:28.1]} 29. Rhg1 {[%clk
0:02:20.7]} 29... Kg7 {[%clk 0:01:27.2]} 30. Rc1 {[%clk 0:02:21.4]} 30... Kf6
{[%clk 0:01:25.2]} 31. Rcf1 {[%clk 0:02:21]} 31... Qd2 {[%clk 0:01:21.9]} 32.
Rd1 {[%clk 0:02:20.7]} 32... Qe2 {[%clk 0:01:17.4]} 33. g4 {[%clk 0:02:20.6]}
33... g5 {[%clk 0:01:13]} 34. Rge1 {[%clk 0:02:19.6]} 34... Qf2 {[%clk
0:01:06.7]} 35. b4 {[%clk 0:02:15.1]} 35... Kg6 {[%clk 0:00:59.2]} 36. Rxe7
{[%clk 0:02:13.7]} 36... Qxf3 {[%clk 0:00:58.5]} 37. Kc2 {[%clk 0:02:14.3]}
37... Qxg4 {[%clk 0:00:58.4]} 38. Rb1 {[%clk 0:02:12.8]} 38... Qc4+ {[%clk
0:00:58.8]} 39. Kd2 {[%clk 0:02:11.3]} 39... Qa2+ {[%clk 0:00:55.3]} 40. Kc1
{[%clk 0:02:10.5]} 40... Qc4+ {[%clk 0:00:56.8]} 41. Kd2 {[%clk 0:02:10.6]}
41... Qxd5+ {[%clk 0:00:58.2]} 42. Kc3 {[%clk 0:02:11.1]} 42... g4 {[%clk
0:00:54.8]} 43. b5 {[%clk 0:02:09.7]} 43... Qc5+ {[%clk 0:00:55.5]} 44. Kd3
{[%clk 0:02:01.9]} 44... d5 {[%clk 0:00:55.4]} 45. Ree1 {[%clk 0:01:59.2]} 45...
Qc4+ {[%clk 0:00:54.8]} 46. Kd2 {[%clk 0:02:01.1]} 46... d4 {[%clk 0:00:53.2]}
47. Rec1 {[%clk 0:02:02]} 47... Qa2+ {[%clk 0:00:52.4]} 48. Kd3 {[%clk
0:02:02.8]} 48... g3 {[%clk 0:00:45.4]} 49. b6 {[%clk 0:02:03]} 49... Qa3+
{[%clk 0:00:45.9]} 50. Kxd4 {[%clk 0:02:03.6]} 50... Qd6+ {[%clk 0:00:47.2]} 51.
Ke3 {[%clk 0:02:03.4]} 51... Qe5+ {[%clk 0:00:47.4]} 52. Kf3 {[%clk 0:02:04.1]}
52... Kg5 {[%clk 0:00:45.4]} 53. b7 {[%clk 0:02:05.1]} 53... Qf4+ {[%clk
0:00:46.2]} 54. Ke2 {[%clk 0:02:06.1]} 54... Qe4+ {[%clk 0:00:46.9]} 55. Kd2
{[%clk 0:02:07]} 55... Qd4+ {[%clk 0:00:48]} 56. Kc2 {[%clk 0:02:08.4]} 56...
Qc4+ {[%clk 0:00:48.6]} 57. Kd2 {[%clk 0:02:08.5]} 57... Qd4+ {[%clk 0:00:49.6]}
58. Kc2 {[%clk 0:02:09.2]} 58... Qc4+ {[%clk 0:00:50.7]} 59. Kd2 {[%clk
0:02:10.5]} 59... Qd4+ {[%clk 0:00:51.8]} 60. Kc2 {[%clk 0:02:11.5]} 60... Qc4+
{[%clk 0:00:52.4]} 61. Kb2 {[%clk 0:02:10.9]} 61... Qb4+ {[%clk 0:00:53.2]} 62.
Ka2 {[%clk 0:02:11.1]} 62... Qa4+ {[%clk 0:00:54.1]} 63. Kb2 {[%clk 0:02:12.6]}
63... Qb4+ {[%clk 0:00:55.3]} 64. Kc2 {[%clk 0:02:14.2]} 64... Qc4+ {[%clk
0:00:56.5]} 65. Kd2 {[%clk 0:02:15.7]} 65... Qd4+ {[%clk 0:00:57.7]} 66. Ke2
{[%clk 0:02:16.6]} 66... Qe4+ {[%clk 0:00:58.9]} 67. Kd2 {[%clk 0:02:15.5]}
67... Qd4+ {[%clk 0:00:59.9]} 1/2-1/2

[Event "*** Titled Tuesday Blitz"]
[Site "Chess.com"]
[Date "2018.06.05"]
[Round "5"]
[White "hansen"]
[Black "DiamondCrusher22"]
[Result "1-0"]
[WhiteElo "2764"]
[BlackElo "1968"]
[TimeControl "180+2"]
[EndTime "14:12:47 PDT"]
[Termination "hansen won by resignation"]

1. e4 {[%clk 0:03:01.4]} 1... e5 {[%clk 0:02:58.8]} 2. Nf3 {[%clk 0:03:02.5]}
2... Nc6 {[%clk 0:02:59.5]} 3. Bb5 {[%clk 0:03:03.6]} 3... Nf6 {[%clk
0:02:59.3]} 4. O-O {[%clk 0:03:02.9]} 4... Nxe4 {[%clk 0:02:56.4]} 5. d4 {[%clk
0:03:03.5]} 5... Nd6 {[%clk 0:02:57.1]} 6. Bxc6 {[%clk 0:03:00]} 6... dxc6
{[%clk 0:02:58]} 7. dxe5 {[%clk 0:03:01.5]} 7... Nf5 {[%clk 0:02:54.6]} 8. Qxd8+
{[%clk 0:03:03.1]} 8... Kxd8 {[%clk 0:02:55.2]} 9. h3 {[%clk 0:03:04.1]} 9...
Be7 {[%clk 0:02:44.5]} 10. Nc3 {[%clk 0:03:04.7]} 10... Be6 {[%clk 0:02:43]} 11.
Rd1+ {[%clk 0:02:50.8]} 11... Kc8 {[%clk 0:02:36.4]} 12. g4 {[%clk 0:02:51.8]}
12... Nh4 {[%clk 0:02:35]} 13. Nxh4 {[%clk 0:02:53.4]} 13... Bxh4 {[%clk
0:02:35.7]} 14. Kg2 {[%clk 0:02:55]} 14... b6 {[%clk 0:02:29.6]} 15. Bf4 {[%clk
0:02:37]} 15... h5 {[%clk 0:02:23.4]} 16. f3 {[%clk 0:02:28.8]} 16... Kb7 {[%clk
0:02:18.8]} 17. Rd2 {[%clk 0:02:28.8]} 17... Rh7 {[%clk 0:01:50.1]} 18. Rad1
{[%clk 0:02:06.4]} 18... Rah8 {[%clk 0:01:37.7]} 19. a3 {[%clk 0:01:53.9]} 19...
g5 {[%clk 0:00:45.6]} 20. Be3 {[%clk 0:01:42.5]} 20... hxg4 {[%clk 0:00:45.2]}
21. hxg4 {[%clk 0:01:43.2]} 21... Bc4 {[%clk 0:00:22.9]} 22. Bg1 {[%clk
0:01:37.1]} 22... f6 {[%clk 0:00:17.3]} 23. exf6 {[%clk 0:01:37.1]} 23... Rf8
{[%clk 0:00:17.3]} 24. Rd7 {[%clk 0:01:31.9]} 24... Rxd7 {[%clk 0:00:12.9]} 25.
Rxd7 {[%clk 0:01:33.8]} 25... Rxf6 {[%clk 0:00:14]} 26. Ne4 {[%clk 0:01:29.3]}
26... Rf4 {[%clk 0:00:12.1]} 27. Bh2 {[%clk 0:01:28.2]} 27... Be6 {[%clk
0:00:08.3]} 28. Rh7 {[%clk 0:01:22.6]} 28... Rf8 {[%clk 0:00:07.3]} 29. Rxc7+
{[%clk 0:01:21]} 29... Ka6 {[%clk 0:00:08.4]} 30. Nc5+ {[%clk 0:01:09.7]} 30...
bxc5 {[%clk 0:00:04.5]} 31. Rxc6+ {[%clk 0:01:11.1]} 31... Kb5 {[%clk
0:00:05.4]} 32. Rxe6 {[%clk 0:01:12.8]} 32... Rd8 {[%clk 0:00:05.9]} 33. Re2
{[%clk 0:01:14.2]} 33... Rd1 {[%clk 0:00:03.9]} 34. f4 {[%clk 0:01:11]} 34...
gxf4 {[%clk 0:00:04.4]} 35. Bxf4 {[%clk 0:01:12.3]} 35... Be1 {[%clk 0:00:05.1]}
36. g5 {[%clk 0:01:10.9]} 36... Ba5 {[%clk 0:00:06.1]} 37. g6 {[%clk 0:01:10.6]}
37... Rd7 {[%clk 0:00:04.5]} 38. Kf3 {[%clk 0:01:11.4]} 38... Rg7 {[%clk
0:00:05.2]} 39. Re6 {[%clk 0:01:12.5]} 39... Bb6 {[%clk 0:00:05.2]} 40. Be5
{[%clk 0:01:13]} 40... Rg8 {[%clk 0:00:06]} 41. g7 {[%clk 0:01:13.5]} 41... Kc4
{[%clk 0:00:07.2]} 42. Rh6 {[%clk 0:01:13.4]} 42... Kd5 {[%clk 0:00:07.2]} 43.
Rh8 {[%clk 0:01:14.1]} 1-0

[Event "*** Titled Tuesday Blitz"]
[Site "Chess.com"]
[Date "2018.06.05"]
[Round "5"]
[White "KRASAVCHIK2002"]
[Black "51616516516"]
[Result "0-1"]
[WhiteElo "2222"]
[BlackElo "2293"]
[TimeControl "180+2"]
[EndTime "14:12:50 PDT"]
[Termination "51616516516 won by resignation"]

1. e4 {[%clk 0:03:01.9]} 1... c5 {[%clk 0:02:59.2]} 2. Nf3 {[%clk 0:03:00.8]}
2... g6 {[%clk 0:03:00.1]} 3. d4 {[%clk 0:03:01.2]} 3... cxd4 {[%clk 0:03:01.5]}
4. Nxd4 {[%clk 0:03:01.1]} 4... Nc6 {[%clk 0:03:02.9]} 5. Nc3 {[%clk 0:03:01.4]}
5... Bg7 {[%clk 0:03:04]} 6. Nde2 {[%clk 0:03:00.2]} 6... Nf6 {[%clk 0:03:02.4]}
7. g3 {[%clk 0:03:01.4]} 7... O-O {[%clk 0:03:03.5]} 8. Bg2 {[%clk 0:03:01.6]}
8... Rb8 {[%clk 0:02:59.6]} 9. O-O {[%clk 0:03:01.6]} 9... b5 {[%clk 0:02:59.6]}
10. h3 {[%clk 0:02:55.1]} 10... d6 {[%clk 0:02:52.6]} 11. Be3 {[%clk 0:02:54.9]}
11... a5 {[%clk 0:02:49.9]} 12. Nd4 {[%clk 0:02:44.9]} 12... Nxd4 {[%clk
0:02:35.3]} 13. Bxd4 {[%clk 0:02:45.7]} 13... Be6 {[%clk 0:02:06.9]} 14. Re1
{[%clk 0:02:31.2]} 14... Nd7 {[%clk 0:02:05.2]} 15. Bxg7 {[%clk 0:02:28.9]}
15... Kxg7 {[%clk 0:02:07.1]} 16. Qd4+ {[%clk 0:02:29.3]} 16... Kg8 {[%clk
0:02:07.7]} 17. Kh2 {[%clk 0:02:25.4]} 17... Qb6 {[%clk 0:02:08]} 18. Qd2 {[%clk
0:02:20.6]} 18... Rfc8 {[%clk 0:02:08.5]} 19. Nd5 {[%clk 0:02:05.8]} 19... Bxd5
{[%clk 0:02:07.6]} 20. exd5 {[%clk 0:02:06.6]} 20... Ne5 {[%clk 0:02:04]} 21. c3
{[%clk 0:02:02.1]} 21... Rc7 {[%clk 0:02:02.9]} 22. Re2 {[%clk 0:01:47.6]} 22...
b4 {[%clk 0:01:47.5]} 23. cxb4 {[%clk 0:01:42.1]} 23... Qxb4 {[%clk 0:01:48.2]}
24. Qh6 {[%clk 0:01:11.5]} 24... Rbc8 {[%clk 0:01:38.1]} 25. Rae1 {[%clk
0:00:57.3]} 25... Nd3 {[%clk 0:00:57.7]} 26. Rb1 {[%clk 0:00:34.4]} 26... Rc2
{[%clk 0:00:47.2]} 27. Rxc2 {[%clk 0:00:33.1]} 27... Rxc2 {[%clk 0:00:47.3]} 28.
Qe3 {[%clk 0:00:31.1]} 28... Qd2 {[%clk 0:00:45.6]} 29. Qxe7 {[%clk 0:00:16.4]}
29... Qxf2 {[%clk 0:00:45.9]} 30. Qe4 {[%clk 0:00:17.3]} 30... Re2 {[%clk
0:00:33.3]} 31. Rf1 {[%clk 0:00:08.4]} 31... Rxe4 {[%clk 0:00:31.3]} 32. Rxf2
{[%clk 0:00:08.7]} 32... Nxf2 {[%clk 0:00:33.2]} 0-1

[Event "*** Titled Tuesday Blitz"]
[Site "Chess.com"]
[Date "2018.06.05"]
[Round "5"]
[White "Nyzhnyk_Illia"]
[Black "Keranke"]
[Result "0-1"]
[WhiteElo "2722"]
[BlackElo "2745"]
[TimeControl "180+2"]
[EndTime "14:12:51 PDT"]
[Termination "Keranke won by resignation"]

1. d4 {[%clk 0:03:01.9]} 1... d5 {[%clk 0:02:58]} 2. Nf3 {[%clk 0:03:02.9]} 2...
Nf6 {[%clk 0:02:58.6]} 3. Bf4 {[%clk 0:03:03.7]} 3... c5 {[%clk 0:02:57.8]} 4.
e3 {[%clk 0:03:04.7]} 4... Nc6 {[%clk 0:02:58.6]} 5. Nbd2 {[%clk 0:02:51.7]}
5... Qb6 {[%clk 0:02:52]} 6. dxc5 {[%clk 0:02:52.9]} 6... Qxc5 {[%clk
0:02:52.7]} 7. a3 {[%clk 0:02:45.9]} 7... g6 {[%clk 0:02:46.1]} 8. c4 {[%clk
0:02:44.3]} 8... dxc4 {[%clk 0:02:35.6]} 9. Bxc4 {[%clk 0:02:44.6]} 9... Bg7
{[%clk 0:02:35.4]} 10. Rc1 {[%clk 0:02:22.8]} 10... Qb6 {[%clk 0:02:35.9]} 11.
b4 {[%clk 0:02:21.6]} 11... O-O {[%clk 0:02:35.3]} 12. O-O {[%clk 0:02:22.6]}
12... Bf5 {[%clk 0:02:31.9]} 13. Qe2 {[%clk 0:02:20.4]} 13... Rac8 {[%clk
0:02:25.9]} 14. Nb3 {[%clk 0:02:20.8]} 14... Ne4 {[%clk 0:02:23.8]} 15. Nfd2
{[%clk 0:01:57.1]} 15... Nc3 {[%clk 0:02:19]} 16. Qf3 {[%clk 0:01:56.1]} 16...
e5 {[%clk 0:02:07.4]} 17. e4 {[%clk 0:01:31.8]} 17... exf4 {[%clk 0:01:42.6]}
18. exf5 {[%clk 0:01:32.9]} 18... Nd4 {[%clk 0:01:42.2]} 19. Qg4 {[%clk
0:01:12.1]} 19... h5 {[%clk 0:01:13.9]} 20. Qxg6 {[%clk 0:01:12.7]} 20... Nce2+
{[%clk 0:01:07.7]} 21. Kh1 {[%clk 0:01:12.1]} 21... Nxc1 {[%clk 0:01:06.6]} 22.
Nxc1 {[%clk 0:01:07.5]} 22... Qf6 {[%clk 0:00:42.2]} 23. Qxh5 {[%clk 0:00:52.8]}
23... Qxf5 {[%clk 0:00:42.4]} 24. Qxf5 {[%clk 0:00:53.9]} 24... Nxf5 {[%clk
0:00:43]} 25. Bd3 {[%clk 0:00:53.6]} 25... Nd4 {[%clk 0:00:38.6]} 26. Be4 {[%clk
0:00:53.5]} 26... b6 {[%clk 0:00:36.7]} 27. Nd3 {[%clk 0:00:45.4]} 27... Rc3
{[%clk 0:00:36.6]} 28. Nxf4 {[%clk 0:00:45.3]} 28... Rxa3 {[%clk 0:00:31.5]} 29.
Nd5 {[%clk 0:00:45.8]} 29... Rd8 {[%clk 0:00:26.6]} 30. g4 {[%clk 0:00:45.2]}
30... Nc6 {[%clk 0:00:21.4]} 31. Nc4 {[%clk 0:00:39.9]} 31... Ra1 {[%clk
0:00:21.4]} 32. Rxa1 {[%clk 0:00:40.2]} 32... Bxa1 {[%clk 0:00:23.3]} 33. Ndxb6
{[%clk 0:00:37.2]} 33... Nxb4 {[%clk 0:00:24]} 34. Na4 {[%clk 0:00:18.3]} 34...
Rd4 {[%clk 0:00:24.9]} 0-1

[Event "*** Titled Tuesday Blitz"]
[Site "Chess.com"]
[Date "2018.06.05"]
[Round "5"]
[White "GMMatamoros"]
[Black "Swarnapuri"]
[Result "0-1"]
[WhiteElo "2500"]
[BlackElo "2461"]
[TimeControl "180+2"]
[EndTime "14:12:54 PDT"]
[Termination "Swarnapuri won by resignation"]

1. Nf3 {[%clk 0:03:01.9]} 1... Nc6 {[%clk 0:03:01.3]} 2. d4 {[%clk 0:03:02.3]}
2... d5 {[%clk 0:02:59.3]} 3. Nbd2 {[%clk 0:03:03.2]} 3... Bf5 {[%clk 0:02:54]}
4. a3 {[%clk 0:03:03.7]} 4... Nf6 {[%clk 0:02:43]} 5. e3 {[%clk 0:03:04.4]} 5...
e6 {[%clk 0:02:42.6]} 6. c4 {[%clk 0:03:04.5]} 6... dxc4 {[%clk 0:02:39.2]} 7.
Bxc4 {[%clk 0:02:55.7]} 7... Bd6 {[%clk 0:02:40]} 8. b4 {[%clk 0:02:56.7]} 8...
O-O {[%clk 0:02:37.8]} 9. Bb2 {[%clk 0:02:57.3]} 9... Qe7 {[%clk 0:02:25.7]} 10.
O-O {[%clk 0:02:49.5]} 10... Rad8 {[%clk 0:02:22.7]} 11. Qe2 {[%clk 0:02:45.5]}
11... Ne4 {[%clk 0:02:11.3]} 12. Rac1 {[%clk 0:02:22.5]} 12... e5 {[%clk
0:01:47.9]} 13. d5 {[%clk 0:01:41.8]} 13... Nb8 {[%clk 0:01:42.6]} 14. Nxe4
{[%clk 0:01:42.3]} 14... Bxe4 {[%clk 0:01:43.5]} 15. Nd2 {[%clk 0:01:43.4]}
15... Bg6 {[%clk 0:01:42.7]} 16. e4 {[%clk 0:01:42.5]} 16... Nd7 {[%clk
0:01:38.8]} 17. Bd3 {[%clk 0:01:43]} 17... Nb6 {[%clk 0:01:32.9]} 18. Nb3 {[%clk
0:01:35.8]} 18... f5 {[%clk 0:01:23.5]} 19. Na5 {[%clk 0:01:27.2]} 19... fxe4
{[%clk 0:01:12.3]} 20. Bxe4 {[%clk 0:01:25.4]} 20... Bxe4 {[%clk 0:01:11.3]} 21.
Qxe4 {[%clk 0:01:26.3]} 21... Rf4 {[%clk 0:01:11.7]} 22. Qe2 {[%clk 0:01:24]}
22... Rdf8 {[%clk 0:00:56.8]} 23. Nxb7 {[%clk 0:01:06.6]} 23... Nxd5 {[%clk
0:00:57.6]} 24. g3 {[%clk 0:00:54.8]} 24... R4f7 {[%clk 0:00:48]} 25. Rcd1
{[%clk 0:00:43.9]} 25... Nf6 {[%clk 0:00:39.4]} 26. Qd2 {[%clk 0:00:35.3]} 26...
Qe6 {[%clk 0:00:20.7]} 27. Nxd6 {[%clk 0:00:20.5]} 27... cxd6 {[%clk 0:00:22.3]}
28. Qxd6 {[%clk 0:00:19]} 28... Qh3 {[%clk 0:00:23.6]} 29. Qd5 {[%clk
0:00:19.4]} 29... Nxd5 {[%clk 0:00:24.3]} 0-1